Workbook

Sheet MSU
B1: Teemu Vuoristo | E1: 1.1.1990 Lohja
B2: SUPERPESIS | E2: Runkosarja | I2: Kärkilyönnit (KL), pesänvälit | P2: Runkosarja TOP-30 | U2: Ylempi loppusarja | AB2: Ylempi loppusarja TOP-10 | AG2: Play off, voitot, voittoprosentti | AL2: Arvo-ottelut | AO2: Mitalit
B3: Vuosi | C3: Sija | D3: Seura | E3: OTT | F3: KUN | G3: LÖI | H3: TOI | I3: KL | J3: 0 > 1 | K3: 1 > 2 | L3: 2 > 3 | M3: 3 > k | N3: KL-% | P3: LÖI | Q3: TOI | R3: L+T | S3: KL | U3: OTT | V3: KUN | W3: LÖI | X3: TOI | Y3: KL | Z3: KL-% | AB3: LÖI | AC3: TOI | AD3: L+T | AE3: KL | AG3: Puolivälierät | AH3: Välierät | AI3: Pronssi | AJ3: Finaalit | AL3: IL | AM3: LL | AN3: hSM | AO3: K | AP3: H | AQ3: P
B4: 2007 | C4: 7. | D4: ViPa | F4: suomensarja | AA4: 0
B5: 2008 | C5: 3. | D5: ViPa | F5: suomensarja | AA5: 0
B6: 2009 | C6: 2. | D6: ViPa | F6: suomensarja
B7: 2010 | C7: 2. | D7: ViPa | F7: suomensarja | AA7: 0
B8: 2011 | C8: 7. | D8: ViPa | F8: suomensarja | AA8: 0
B9: 2012 | C9: 10. | D9: PuMu | F9: ykköspesis | AA9: 66
B10: 2013 | C10: 5. | D10: Tahko 2 | F10: suomensarja
B11: 2013 | C11: 5. | D11: Tahko | E11: 20 | F11: 0 | G11: 0 | H11: 9 | I11: 35 | J11: 35 | K11: 0 | L11: 0 | M11: 0 | N11: 44.3 % | U11: 4 | V11: 0 | W11: 0 | X11: 0 | Y11: 6 | Z11: 40.0 % | AG11: 2-3 JoMa
B12: 2014 | C12: 8. | D12: Manse PP | AA12: 0
B13: 2014 | C13: 4. | D13: Tahko | E13: 25 | F13: 1 | G13: 1 | H13: 21 | I13: 59 | J13: 52 | K13: 4 | L13: 1 | M13: 2 | N13: 61.5 % | U13: 8 | V13: 0 | W13: 0 | X13: 4 | Y13: 18 | Z13: 47.4 % | AA13: 0 | AG13: 3-1 JymyJussit | AH13: 0-3 SoJy | AI13: 1-2 JoMa
B14: 2015 | C14: 7. | D14: ViPa | F14: suomensarja | AA14: 0
B15: 2016 | C15: 4. | D15: KiPe | F15: suomensarja | AA15: 40
B16: 2017 | C16: 4. | D16: KiPe | F16: suomensarja | AA16: 74
B17: 2018 | C17: 4. | D17: KiPe | F17: suomensarja | AA17: 74
B18: 2019 | C18: 6. | D18: KiPe | F18: suomensarja | AA18: 74
B19: 2020 | C19: 2. | D19: KiPe | F19: suomensarja | AA19: 74
B20: 2021 | C20: 3. | D20: KiPe | F20: suomensarja | AA20: 74
B21: Yhteensä | E21: 45 | F21: 1 | G21: 1 | H21: 30 | I21: 94 | J21: 87 | K21: 4 | L21: 1 | M21: 2 | N21: 53.7 % | P21: 0-0-0 | Q21: 0-0-0 | R21: 0-0-0 | S21: 0-0-0 | U21: =PRODUCT(E27) -> 12 | V21: 0 | W21: 0 | X21: 4 | Y21: 24 | Z21: =PRODUCT(N27) -> 45.3 % | AA21: =SUM(AA3:AA20) -> 476 | AB21: 0-0-0 | AC21: 0-0-0 | AD21: 0-0-0 | AE21: 0-0-0 | AG21: 1/2 | AH21: 0/1 | AI21: 0/1 | AJ21: 0/0 | AL21: =SUM(AL4:AL20) -> 0 | AM21: 0 | AN21: 0 | AO21: 0 | AP21: 0 | AQ21: 0
AG22: 50.0 % | AH22: 0.0 % | AI22: 0.0 % | AJ22: 0.0 %
B23: Pesispörssi | D23: 77.7
B25: URA SUPERISSA | E25: OTT | F25: KUN | G25: LÖI | H25: TOI | I25: KL | K25: ka/L | L25: ka/T | M25: ka/KL | N25: KL-% | P25: ENSIMMÄISET RUNKOSARJASSA | AG25: ENSIMMÄISET PUDOTUSPELEISSÄ | AL25: YLEISÖ
B26: Runkosarja | E26: 45 | F26: 1 | G26: 1 | H26: 30 | I26: 94 | K26: 0.04 | L26: 0.67 | M26: 2.09 | N26: 53.7 % | P26: Ottelu | R26: 02.06. 2013 KoU - Tahko 2-1 (3-0, 4-5, 2-0) | AA26: 1. ottelu | AD26: 23 v 5 kk 1 pv | AG26: Ottelu | AH26: 1. 09.08. 2013 JoMa - Tahko 1-0 | AL26: 2004 | AN26: 23 v 7 kk 8 pv
B27: Ylempi loppusarja | E27: 12 | F27: 0 | G27: 0 | H27: 4 | I27: 24 | K27: 0.00 | L27: 0.33 | M27: 2.00 | N27: 45.3 % | P27: Lyöty | R27: 20.05. 2014 Tahko - ViVe 1-2 (5-4, 4-8, 0-1) | AA27: 26. ottelu | AD27: 24 v 4 kk 19 pv | AG27: Lyöty
B28: Alempi loppusarja | P28: Tuotu | R28: 02.06. 2013 KoU - Tahko 2-1 (3-0, 4-5, 2-0) | AA28: 1. ottelu | AD28: 23 v 5 kk 1 pv | AG28: Tuotu | AH28: 5. 17.08. 2014 JymyJussit - Tahko 1-2 k | AL28: 1212 | AN28: 24 v 7 kk 16 pv
B29: KAIKKI | E29: 57 | F29: 1 | G29: 1 | H29: 34 | I29: 118 | K29: 0.04 | L29: 0.60 | M29: 2.07 | N29: 51.8 % | P29: Kunnari | R29: 20.05. 2014 Tahko - ViVe 1-2 (5-4, 4-8, 0-1) | AA29: 26. ottelu | AD29: 24 v 4 kk 19 pv | AG29: Kunnari
B31: Seurat | D31: ViPa = Vihdin Pallo (1967), kasvattajaseura
D32: PuMu = Helsingin Puna-Mustat (1941)
D33: Tahko = Hyvinkään Tahko (1915)
D34: Manse PP = Manse PP, Tampere (2005)
D35: KiPe = Kinnarin Pesis 2006 (2005)

Sheet MYP, MSS
B1: Teemu Vuoristo | E1: 1.1.1990 Lohja
B2: YKKÖSPESIS | E2: Runkosarja | L2: Runkosarja TOP-10 | Q2: Jatkosarjat | X2: SUOMENSARJA | AA2: Runkosarja | AH2: Runkosarja TOP-10 | AM2: Jatkosarjat
B3: Vuosi | C3: Sija | D3: Seura | E3: OTT | F3: KUN | G3: LÖI | H3: TOI | I3: KL | J3: KL-% | L3: LÖI | M3: TOI | N3: L+T | O3: KL | Q3: OTT | R3: KUN | S3: LÖI | T3: TOI | U3: KL | V3: KL-% | X3: Vuosi | Y3: Sija | Z3: Seura | AA3: OTT | AB3: KUN | AC3: LÖI | AD3: TOI | AE3: KL | AF3: KL-% | AH3: LÖI | AI3: TOI | AJ3: L+T | AK3: KL | AM3: OTT | AN3: KUN | AO3: LÖI | AP3: TOI | AQ3: KL | AR3: KL-%
X4: 2007 | Y4: 7. | Z4: ViPa | AA4: 5 | AB4: 0 | AC4: 0 | AD4: 1 | AE4: 5 | AF4: 45.5 % | AG4: 11
X5: 2008 | Y5: 3. | Z5: ViPa | AA5: 15 | AB5: 0 | AC5: 2 | AD5: 13 | AE5: 31 | AF5: 57.4 % | AG5: 54 | AM5: 1 | AN5: 0 | AO5: 0 | AP5: 0 | AQ5: 3 | AR5: 60.0 % | AS5: 5
X6: 2009 | Y6: 2. | Z6: ViPa | AA6: 12 | AB6: 0 | AC6: 1 | AD6: 16 | AE6: 24 | AF6: 58.5 % | AG6: 41 | AM6: 5 | AN6: 0 | AO6: 1 | AP6: 1 | AQ6: 4 | AR6: 36.4 %
X7: 2010 | Y7: 2. | Z7: ViPa | AA7: 12 | AB7: 4 | AC7: 3 | AD7: 26 | AE7: 69 | AF7: 77.5 % | AG7: 89 | AM7: 6 | AN7: 0 | AO7: 0 | AP7: 4 | AQ7: 21 | AR7: 72.4 % | AS7: 29
X8: 2011 | Y8: 7. | Z8: ViPa | AA8: 16 | AB8: 1 | AC8: 2 | AD8: 32 | AE8: 92 | AF8: 74.8 % | AG8: 123 | AI8: 8.
B9: 2012 | C9: 10. | D9: PuMu | E9: 21 | F9: 3 | G9: 2 | H9: 23 | I9: 78 | J9: 57.4 % | K9: 136 | Q9: 4 | R9: 3 | S9: 0 | T9: 11 | U9: 24 | V9: 68.6 % | W9: 35
X10: 2013 | Y10: 5. | Z10: Tahko 2 | AA10: 2 | AB10: 0 | AC10: 0 | AD10: 2 | AE10: 3 | AF10: 60.0 % | AG10: 5
B11: 2014 | C11: 8. | D11: Manse PP | E11: 6 | F11: 0 | G11: 0 | H11: 8 | I11: 13 | J11: 48.1 % | K11: 27 | X11: 2015 | Y11: 7. | Z11: ViPa | AA11: 16 | AB11: 1 | AC11: 3 | AD11: 28 | AE11: 76 | AF11: 60.8 % | AG11: 125 | AI11: 7.
X12: 2016 | Y12: 4. | Z12: KiPe | AA12: 12 | AB12: 1 | AC12: 4 | AD12: 25 | AE12: 69 | AF12: 61.6 % | AG12: 112 | AM12: 3 | AN12: 0 | AO12: 0 | AP12: 5 | AQ12: 19 | AR12: 76.0 % | AS12: 25
X13: 2017 | Y13: 4. | Z13: KiPe | AA13: 10 | AB13: 1 | AC13: 1 | AD13: 29 | AE13: 53 | AF13: 60.2 % | AG13: 88 | AI13: 4. | AM13: 2 | AN13: 0 | AO13: 0 | AP13: 1 | AQ13: 9 | AR13: 47.4 % | AS13: 19
X14: 2018 | Y14: 4. | Z14: KiPe | AA14: 8 | AB14: 0 | AC14: 2 | AD14: 23 | AE14: 41 | AF14: 58.6 % | AG14: =PRODUCT(AE14/AF14) -> 70 | AI14: 8. | AM14: 2 | AN14: 0 | AO14: 0 | AP14: 2 | AQ14: 11 | AR14: 91.7 % | AS14: =PRODUCT(AQ14/AR14) -> 12.00087279
X15: 2019 | Y15: 6. | Z15: KiPe | AA15: 4 | AB15: 0 | AC15: 0 | AD15: 7 | AE15: 12 | AF15: 66.7 % | AG15: 18
X16: 2020 | Y16: 2. | Z16: KiPe | AA16: 6 | AB16: 0 | AC16: 1 | AD16: 15 | AE16: 31 | AF16: 54.4 % | AG16: 57 | AM16: 2 | AN16: 0 | AO16: 0 | AP16: 1 | AQ16: 3 | AR16: 60.0 % | AS16: 5
X17: 2021 | Y17: 3. | Z17: KiPe | AA17: 2 | AB17: 0 | AC17: 0 | AD17: 3 | AE17: 8 | AF17: 61.5 % | AG17: 13
B18: YHTEENSÄ | E18: =SUM(E4:E17) -> 27 | F18: =SUM(F4:F17) -> 3 | G18: =SUM(G4:G17) -> 2 | H18: =SUM(H4:H17) -> 31 | I18: =SUM(I4:I17) -> 91 | J18: =PRODUCT(I18/K18) -> 55.8 % | K18: =SUM(K4:K17) -> 163 | Q18: =SUM(Q4:Q17) -> 4 | R18: =SUM(R4:R17) -> 3 | S18: =SUM(S4:S17) -> 0 | T18: =SUM(T4:T17) -> 11 | U18: =SUM(U4:U17) -> 24 | V18: =PRODUCT(U18/W18) -> 68.6 % | W18: =SUM(W4:W17) -> 35 | X18: YHTEENSÄ | AA18: =SUM(AA4:AA17) -> 120 | AB18: =SUM(AB4:AB17) -> 8 | AC18: =SUM(AC4:AC17) -> 19 | AD18: =SUM(AD4:AD17) -> 220 | AE18: =SUM(AE4:AE17) -> 514 | AF18: =PRODUCT(AE18/AG18) -> 63.8 % | AG18: =SUM(AG4:AG17) -> 806.0017074 | AM18: =SUM(AM4:AM17) -> 21 | AN18: =SUM(AN4:AN17) -> 0 | AO18: =SUM(AO4:AO17) -> 1 | AP18: =SUM(AP4:AP17) -> 14 | AQ18: =SUM(AQ4:AQ17) -> 70 | AR18: =PRODUCT(AQ18/AS18) -> 73.7 % | AS18: =SUM(AS4:AS17) -> 95.00087279
B20: KAIKKI OTTELUT | E20: OTT | F20: KUN | G20: LÖI | H20: TOI | I20: KL | J20: KL-% | L20: ka/L | M20: ka/T | N20: ka/l+t | O20: ka/kl | R20: Seurat | T20: ViPa = Vihdin Pallo (1967), kasvattajaseura
B21: SUPERPESIS | E21: 57 | F21: 1 | G21: 1 | H21: 34 | I21: 118 | J21: 51.8 % | K21: =PRODUCT(I21/J21) -> 227.7992278 | L21: =PRODUCT((F21+G21)/E21) -> 0.04 | M21: =PRODUCT(H21/E21) -> 0.60 | N21: =PRODUCT((F21+G21+H21)/E21) -> 0.63 | O21: =PRODUCT(I21/E21) -> 2.07 | T21: PuMu = Helsingin Puna-Mustat (1941)
B22: YKKÖSPESIS | E22: =PRODUCT(E18+Q18) -> 31 | F22: =PRODUCT(F18+R18) -> 6 | G22: =PRODUCT(G18+S18) -> 2 | H22: =PRODUCT(H18+T18) -> 42 | I22: =PRODUCT(I18+U18) -> 115 | J22: =PRODUCT(I22/K22) -> 58.1 % | K22: =PRODUCT(K18+W18) -> 198 | L22: =PRODUCT((F22+G22)/E22) -> 0.26 | M22: =PRODUCT(H22/E22) -> 1.35 | N22: =PRODUCT((F22+G22+H22)/E22) -> 1.61 | O22: =PRODUCT(I22/E22) -> 3.71 | T22: Tahko = Hyvinkään Tahko (1915)
B23: SUOMENSARJA | E23: =PRODUCT(AA18+AM18) -> 141 | F23: =PRODUCT(AB18+AN18) -> 8 | G23: =PRODUCT(AC18+AO18) -> 20 | H23: =PRODUCT(AD18+AP18) -> 234 | I23: =PRODUCT(AE18+AQ18) -> 584 | J23: =PRODUCT(I23/K23) -> 64.8 % | K23: =PRODUCT(AG18+AS18) -> 901.0025801 | L23: =PRODUCT((F23+G23)/E23) -> 0.20 | M23: =PRODUCT(H23/E23) -> 1.66 | N23: =PRODUCT((F23+G23+H23)/E23) -> 1.86 | O23: =PRODUCT(I23/E23) -> 4.14 | T23: Manse PP = Manse PP, Tampere (2005)
B24: YHTEENSÄ | E24: =SUM(E21:E23) -> 229 | F24: =SUM(F21:F23) -> 15 | G24: 23 | H24: 310 | I24: 817 | J24: =PRODUCT(I24/K24) -> 61.6 % | K24: =SUM(K21:K23) -> 1326.801808 | L24: =PRODUCT((F24+G24)/E24) -> 0.17 | M24: =PRODUCT(H24/E24) -> 1.35 | N24: =PRODUCT((F24+G24+H24)/E24) -> 1.52 | O24: =PRODUCT(I24/E24) -> 3.57 | T24: KiPe = Kinnarin Pesis 2006 (2005)

Sheet Kärkilyönnit
B1: KÄRKILYÖNNIT RUNKOSARJASSA | V1: VUOSITTAISET SIJOITUKSET TOP - 30
G2: 0 > 1 | J2: 1 > 2 | M2: 2 > 3 | P2: 3 > k | S2: Yhteensä
B3: Vuosi | C3: Sija | D3: Seura | E3: OTT | F3: KL | G3: YHT | H3: % | I3: KL | J3: YHT | K3: % | L3: KL | M3: YHT | N3: % | O3: KL | P3: YHT | Q3: % | R3: KL | S3: YHT | T3: % | V3: Vuosi | W3: Sija | X3: Seura | Y3: 0 > 1 | Z3: 1 > 2 | AA3: 2 > 3 | AB3: 3 > k | AC3: KL
B4: 2013 | C4: 5. | D4: Tahko | E4: 20 | F4: 35 | G4: 75 | H4: 46.7 % | I4: 0 | J4: 0 | K4: 0.0 % | L4: 0 | M4: 2 | N4: 0.0 % | O4: 0 | P4: 2 | Q4: 0.0 % | R4: 35 | S4: 79 | T4: 44.3 % | V4: 2013 | W4: 5. | X4: Tahko
B5: 2014 | C5: 5. | D5: Tahko | E5: 25 | F5: 52 | G5: 86 | H5: 60.5 % | I5: 4 | J5: 4 | K5: 100.0 % | L5: 1 | M5: 3 | N5: 33.3 % | O5: 2 | P5: 3 | Q5: 66.7 % | R5: 59 | S5: 96 | T5: 61.5 % | V5: 2014 | W5: 5. | X5: Tahko | Y5: 30.
B6: Yhteensä | E6: =SUM(E4:E5) -> 45 | F6: =SUM(F4:F5) -> 87 | G6: =SUM(G4:G5) -> 161 | H6: =PRODUCT(F6/G6) -> 54.0 % | I6: =SUM(I4:I5) -> 4 | J6: =SUM(J4:J5) -> 4 | K6: =PRODUCT(I6/J6) -> 100.0 % | L6: =SUM(L4:L5) -> 1 | M6: =SUM(M4:M5) -> 5 | N6: =PRODUCT(L6/M6) -> 20.0 % | O6: =SUM(O4:O5) -> 2 | P6: =SUM(P4:P5) -> 5 | Q6: =PRODUCT(O6/P6) -> 40.0 % | R6: =SUM(R4:R5) -> 94 | S6: =SUM(S4:S5) -> 175 | T6: =PRODUCT(R6/S6) -> 53.7 %
B8: KÄRKILYÖNNIT YLEMMISSÄ PUDOTUSPELEISSÄ | V8: VUOSITTAISET SIJOITUKSET TOP - 30
G9: 0 > 1 | J9: 1 > 2 | M9: 2 > 3 | P9: 3 > k | S9: Yhteensä
B10: Vuosi | C10: Sija | D10: Seura | E10: OTT | F10: KL | G10: YHT | H10: % | I10: KL | J10: YHT | K10: % | L10: KL | M10: YHT | N10: % | O10: KL | P10: YHT | Q10: % | R10: KL | S10: YHT | T10: % | V10: Vuosi | W10: Sija | X10: Seura | Y10: 0 > 1 | Z10: 1 > 2 | AA10: 2 > 3 | AB10: 3 > k | AC10: KL
B11: 2013 | C11: 5. | D11: Tahko | E11: 4 | F11: 6 | G11: 15 | H11: 40.0 % | I11: 0 | J11: 0 | K11: 0.0 % | L11: 0 | M11: 0 | N11: 0.0 % | O11: 0 | P11: 0 | Q11: 0.0 % | R11: 6 | S11: 15 | T11: 40.0 % | V11: 2013 | W11: 5. | X11: Tahko
B12: 2014 | C12: 4. | D12: Tahko | E12: 8 | F12: 17 | G12: 35 | H12: 48.6 % | I12: 0 | J12: 1 | K12: 0.0 % | L12: 1 | M12: 2 | N12: 50.0 % | O12: 0 | P12: 0 | Q12: 0.0 % | R12: 18 | S12: 38 | T12: 47.4 % | V12: 2014 | W12: 4. | X12: Tahko | Y12: 8.
B13: Yhteensä | E13: =SUM(E9:E12) -> 12 | F13: =SUM(F11:F12) -> 23 | G13: =SUM(G11:G12) -> 50 | H13: =PRODUCT(F13/G13) -> 46.0 % | I13: =SUM(I11:I12) -> 0 | J13: =SUM(J11:J12) -> 1 | K13: =PRODUCT(I13/J13) -> 0.0 % | L13: =SUM(L11:L12) -> 1 | M13: =SUM(M11:M12) -> 2 | N13: =PRODUCT(L13/M13) -> 50.0 % | O13: =SUM(O11:O12) -> 0 | P13: =SUM(P11:P12) -> 0 | Q13: 0.0 % | R13: =SUM(R11:R12) -> 24 | S13: =SUM(S11:S12) -> 53 | T13: =PRODUCT(R13/S13) -> 45.3 %
B15: KÄRKILYÖNNIT
G16: 0 > 1 | J16: 1 > 2 | M16: 2 > 3 | P16: 3 > k | S16: Yhteensä
E17: OTT | F17: KL | G17: YHT | H17: % | I17: KL | J17: YHT | K17: % | L17: KL | M17: YHT | N17: % | O17: KL | P17: YHT | Q17: % | R17: KL | S17: YHT | T17: %
B18: RUNKOSARJA | E18: =PRODUCT(E6) -> 45 | F18: =PRODUCT(F6) -> 87 | G18: =PRODUCT(G6) -> 161 | H18: =PRODUCT(H6) -> 54.0 % | I18: =PRODUCT(I6) -> 4 | J18: =PRODUCT(J6) -> 4 | K18: =PRODUCT(K6) -> 100.0 % | L18: =PRODUCT(L6) -> 1 | M18: =PRODUCT(M6) -> 5 | N18: =PRODUCT(N6) -> 20.0 % | O18: =PRODUCT(O6) -> 2 | P18: =PRODUCT(P6) -> 5 | Q18: =PRODUCT(Q6) -> 40.0 % | R18: =PRODUCT(R6) -> 94 | S18: =PRODUCT(S6) -> 175 | T18: =PRODUCT(T6) -> 53.7 %
B19: PLAY OFF | E19: =PRODUCT(E13) -> 12 | F19: =PRODUCT(F13) -> 23 | G19: 50 | H19: 46.0 % | I19: 0 | J19: 1 | K19: 0.0 % | L19: 1 | M19: 2 | N19: 50.0 % | O19: 0 | P19: 0 | Q19: 0.0 % | R19: 24 | S19: 53 | T19: 45.3 %
